[Event "Titled Tuesday Blitz September 27 Early 2022"]
[White "Papp, Levente"]
[Black "Sethuraman, S.P."]
[WhiteFideId "751243"]
[BlackFideId "5021596"]
[WhiteElo "2341"]
[BlackElo "2425"]
[Result "0-1"]
[Round "02"]
[TimeControl "180+1"]
[Date "2022.09.27"]
[WhiteClock "0:00:02"]
[BlackClock "0:00:57"]

1. c4 {[%clk 0:03:00]}  e6 {[%clk 0:02:58]} 2. Nf3 {[%clk 0:02:57]}  d5 {[%clk 0:02:58]} 3. b3 {[%clk 0:02:57]}  Nf6 {[%clk 0:02:57]} 4. g3 {[%clk 0:02:56]}  c5 {[%clk 0:02:51]} 5. Bg2 {[%clk 0:02:49]}  d4 {[%clk 0:02:50]} 6. O-O {[%clk 0:02:42]}  Nc6 {[%clk 0:02:50]} 7. e3 {[%clk 0:02:34]}  Be7 {[%clk 0:02:38]} 8. Bb2 {[%clk 0:02:14]}  e5 {[%clk 0:02:37]} 9. exd4 {[%clk 0:02:10]}  exd4 {[%clk 0:02:37]} 10. d3 {[%clk 0:01:59]}  O-O {[%clk 0:02:37]} 11. Re1 {[%clk 0:01:54]}  h6 {[%clk 0:02:37]} 12. Nbd2 {[%clk 0:01:46]}  Bf5 {[%clk 0:02:36]} 13. Ne4 {[%clk 0:01:45]}  Nxe4 {[%clk 0:02:35]} 14. dxe4 {[%clk 0:01:46]}  Be6 {[%clk 0:02:36]} 15. Re2 {[%clk 0:01:22]}  a6 {[%clk 0:02:36]} 16. Ne1 {[%clk 0:01:18]}  b5 {[%clk 0:02:32]} 17. Rc1 {[%clk 0:01:11]}  bxc4 {[%clk 0:02:32]} 18. bxc4 {[%clk 0:01:12]}  Ne5 {[%clk 0:02:08]} 19. Qa4 {[%clk 0:01:06]}  Rb8 {[%clk 0:02:03]} 20. Ba3 {[%clk 0:00:47]}  d3 {[%clk 0:01:50]} 21. Rd2 {[%clk 0:00:47]}  Qd4 {[%clk 0:01:38]} 22. Rcd1 {[%clk 0:00:22]}  Bg5 {[%clk 0:01:17]} 23. Nf3 {[%clk 0:00:06]}  Nxf3+ {[%clk 0:01:14]} 24. Bxf3 {[%clk 0:00:05]}  Bxd2 {[%clk 0:01:14]} 25. Rxd2 {[%clk 0:00:05]}  Bxc4 {[%clk 0:01:03]} 26. Qa5 {[%clk 0:00:03]}  Bb5 {[%clk 0:00:59]} 27. Bb2 {[%clk 0:00:02]}  Qb4 {[%clk 0:00:57]} 0-1


[Site "https://www.chess.com"]

[Event "Titled Tuesday Blitz September 27 Early 2022"]
[White "Reyes, Narquingden"]
[Black "Bryakin, Mikhail"]
[WhiteFideId "5217334"]
[BlackFideId "4165314"]
[WhiteElo "2313"]
[BlackElo "2357"]
[Result "1-0"]
[Round "02"]
[TimeControl "180+1"]
[Date "2022.09.27"]
[WhiteClock "0:00:51"]
[BlackClock "0:01:10"]

1. d4 {[%clk 0:03:00]}  Nf6 {[%clk 0:02:50]} 2. Nf3 {[%clk 0:03:00]}  d5 {[%clk 0:02:48]} 3. c3 {[%clk 0:03:00]}  g6 {[%clk 0:02:44]} 4. h3 {[%clk 0:02:59]}  Bg7 {[%clk 0:02:45]} 5. Bf4 {[%clk 0:02:59]}  O-O {[%clk 0:02:45]} 6. e3 {[%clk 0:02:59]}  c5 {[%clk 0:02:44]} 7. Nbd2 {[%clk 0:02:59]}  Qb6 {[%clk 0:02:43]} 8. Qb3 {[%clk 0:02:59]}  c4 {[%clk 0:02:42]} 9. Qa3 {[%clk 0:02:58]}  Nc6 {[%clk 0:02:41]} 10. b3 {[%clk 0:02:57]}  cxb3 {[%clk 0:02:40]} 11. axb3 {[%clk 0:02:58]}  Nd7 {[%clk 0:02:33]} 12. Be2 {[%clk 0:02:55]}  e5 {[%clk 0:02:32]} 13. Bg3 {[%clk 0:02:55]}  e4 {[%clk 0:02:32]} 14. Nh2 {[%clk 0:02:53]}  f5 {[%clk 0:02:31]} 15. O-O {[%clk 0:02:51]}  Nf6 {[%clk 0:02:31]} 16. c4 {[%clk 0:02:48]}  Be6 {[%clk 0:02:30]} 17. c5 {[%clk 0:02:44]}  Qd8 {[%clk 0:02:30]} 18. b4 {[%clk 0:02:44]}  Rf7 {[%clk 0:02:20]} 19. b5 {[%clk 0:02:42]}  Ne7 {[%clk 0:02:21]} 20. Rfc1 {[%clk 0:02:28]}  g5 {[%clk 0:02:20]} 21. Be5 {[%clk 0:02:24]}  Ng6 {[%clk 0:02:20]} 22. f4 {[%clk 0:02:10]}  exf3 {[%clk 0:02:06]} 23. Nhxf3 {[%clk 0:02:09]}  h6 {[%clk 0:02:05]} 24. c6 {[%clk 0:02:05]}  Ne4 {[%clk 0:02:05]} 25. Bxg7 {[%clk 0:01:51]}  Kxg7 {[%clk 0:02:03]} 26. Nxe4 {[%clk 0:01:38]}  fxe4 {[%clk 0:01:52]} 27. Ne5 {[%clk 0:01:33]}  Nxe5 {[%clk 0:01:52]} 28. dxe5 {[%clk 0:01:34]}  Qb6 {[%clk 0:01:49]} 29. Qc5 {[%clk 0:01:17]}  Qxc5 {[%clk 0:01:17]} 30. Rxc5 {[%clk 0:01:18]}  b6 {[%clk 0:01:17]} 31. Rc3 {[%clk 0:01:17]}  Re8 {[%clk 0:01:17]} 32. Bh5 {[%clk 0:01:09]}  d4 {[%clk 0:01:12]} 33. exd4 {[%clk 0:00:56]}  Bd5 {[%clk 0:01:11]} 34. Bxf7 {[%clk 0:00:51]}  Kxf7 {[%clk 0:01:10]} 35. Rxa7+ {[%clk 0:00:51]} 1-0


[Site "https://www.chess.com"]

[Event "Titled Tuesday Blitz September 27 Early 2022"]
[White "Rosen, Eric"]
[Black "Wirig, Anthony"]
[WhiteFideId "2032562"]
[BlackFideId "615013"]
[WhiteElo "2362"]
[BlackElo "2474"]
[Result "1-0"]
[Round "02"]
[TimeControl "180+1"]
[Date "2022.09.27"]
[WhiteClock "0:00:08"]
[BlackClock "0:00:09"]

1. d4 {[%clk 0:03:00]}  Nf6 {[%clk 0:02:58]} 2. Bf4 {[%clk 0:03:01]}  d6 {[%clk 0:02:53]} 3. Nc3 {[%clk 0:03:00]}  g6 {[%clk 0:02:50]} 4. e4 {[%clk 0:03:00]}  Bg7 {[%clk 0:02:50]} 5. Qd2 {[%clk 0:03:01]}  c6 {[%clk 0:02:50]} 6. O-O-O {[%clk 0:03:01]}  h6 {[%clk 0:02:49]} 7. h3 {[%clk 0:03:00]}  b5 {[%clk 0:02:40]} 8. Bd3 {[%clk 0:02:49]}  b4 {[%clk 0:02:36]} 9. Nce2 {[%clk 0:02:48]}  Qb6 {[%clk 0:02:19]} 10. Nf3 {[%clk 0:02:44]}  Ba6 {[%clk 0:02:12]} 11. e5 {[%clk 0:02:36]}  dxe5 {[%clk 0:01:55]} 12. Nxe5 {[%clk 0:02:21]}  Bxd3 {[%clk 0:01:51]} 13. Qxd3 {[%clk 0:02:17]}  O-O {[%clk 0:01:49]} 14. g4 {[%clk 0:02:04]}  Nd5 {[%clk 0:01:39]} 15. Bd2 {[%clk 0:02:00]}  a5 {[%clk 0:01:13]} 16. h4 {[%clk 0:01:59]}  a4 {[%clk 0:01:12]} 17. h5 {[%clk 0:01:56]}  g5 {[%clk 0:01:06]} 18. f4 {[%clk 0:01:55]}  b3 {[%clk 0:00:57]} 19. cxb3 {[%clk 0:01:48]}  axb3 {[%clk 0:00:40]} 20. a3 {[%clk 0:01:49]}  Qb5 {[%clk 0:00:33]} 21. fxg5 {[%clk 0:01:10]}  Qxd3 {[%clk 0:00:23]} 22. Nxd3 {[%clk 0:01:10]}  hxg5 {[%clk 0:00:23]} 23. Bxg5 {[%clk 0:01:09]}  Nd7 {[%clk 0:00:23]} 24. h6 {[%clk 0:00:46]}  Bf6 {[%clk 0:00:22]} 25. Bd2 {[%clk 0:00:47]}  Kh7 {[%clk 0:00:22]} 26. g5 {[%clk 0:00:44]}  Bh8 {[%clk 0:00:22]} 27. Rdf1 {[%clk 0:00:44]}  e5 {[%clk 0:00:15]} 28. dxe5 {[%clk 0:00:38]}  Nxe5 {[%clk 0:00:16]} 29. Nxe5 {[%clk 0:00:39]}  Bxe5 {[%clk 0:00:17]} 30. Rh3 {[%clk 0:00:39]}  Kg6 {[%clk 0:00:15]} 31. Rxb3 {[%clk 0:00:39]}  f6 {[%clk 0:00:15]} 32. Rg1 {[%clk 0:00:36]}  f5 {[%clk 0:00:15]} 33. Kb1 {[%clk 0:00:32]}  f4 {[%clk 0:00:15]} 34. Rf3 {[%clk 0:00:31]}  Rf5 {[%clk 0:00:15]} 35. Rc1 {[%clk 0:00:28]}  Ra6 {[%clk 0:00:14]} 36. Rh1 {[%clk 0:00:21]}  Ra7 {[%clk 0:00:14]} 37. Rc1 {[%clk 0:00:17]}  Ra6 {[%clk 0:00:14]} 38. Rh3 {[%clk 0:00:17]}  Rf7 {[%clk 0:00:14]} 39. Rch1 {[%clk 0:00:16]}  Rh7 {[%clk 0:00:14]} 40. Rf1 {[%clk 0:00:17]}  Rf7 {[%clk 0:00:13]} 41. Rh4 {[%clk 0:00:17]}  Kxg5 {[%clk 0:00:13]} 42. Rhh1 {[%clk 0:00:17]}  Kg6 {[%clk 0:00:13]} 43. h7 {[%clk 0:00:16]}  Ra8 {[%clk 0:00:10]} 44. Rfg1+ {[%clk 0:00:16]}  Kf5 {[%clk 0:00:11]} 45. Rg8 {[%clk 0:00:17]}  Rff8 {[%clk 0:00:10]} 46. Rh5+ {[%clk 0:00:07]}  Kf6 {[%clk 0:00:10]} 47. h8=Q+ {[%clk 0:00:06]}  Ke7 {[%clk 0:00:09]} 48. Qxe5+ {[%clk 0:00:06]}  Kd7 {[%clk 0:00:10]} 49. Rxf8 {[%clk 0:00:06]}  Rxf8 {[%clk 0:00:09]} 50. Rh7+ {[%clk 0:00:07]}  Kc8 {[%clk 0:00:10]} 51. Nxf4 {[%clk 0:00:08]}  Rd8 {[%clk 0:00:09]} 52. Qe6+ {[%clk 0:00:07]}  Kb8 {[%clk 0:00:09]} 53. Qxc6 {[%clk 0:00:08]} 1-0


[Site "https://www.chess.com"]

[Event "Titled Tuesday Blitz September 27 Early 2022"]
[White "Rosenberg, Evan S"]
[Black "Adewumi, Tanitoluwa"]
[WhiteFideId "2019299"]
[BlackFideId "30966396"]
[WhiteElo "2366"]
[BlackElo "2588"]
[Result "0-1"]
[Round "02"]
[TimeControl "180+1"]
[Date "2022.09.27"]
[WhiteClock "0:00:06"]
[BlackClock "0:00:06"]

1. Nf3 {[%clk 0:02:56]}  Nf6 {[%clk 0:02:58]} 2. c4 {[%clk 0:02:56]}  e6 {[%clk 0:02:54]} 3. Nc3 {[%clk 0:02:56]}  d5 {[%clk 0:02:54]} 4. d4 {[%clk 0:02:55]}  Be7 {[%clk 0:02:41]} 5. Bg5 {[%clk 0:02:54]}  c6 {[%clk 0:02:28]} 6. e3 {[%clk 0:02:53]}  h6 {[%clk 0:02:28]} 7. Bf4 {[%clk 0:02:53]}  O-O {[%clk 0:02:27]} 8. Qc2 {[%clk 0:02:53]}  b6 {[%clk 0:02:26]} 9. Rd1 {[%clk 0:02:46]}  Bb7 {[%clk 0:02:23]} 10. a3 {[%clk 0:02:46]}  Nbd7 {[%clk 0:02:22]} 11. cxd5 {[%clk 0:02:40]}  exd5 {[%clk 0:02:05]} 12. Bd3 {[%clk 0:02:35]}  c5 {[%clk 0:01:59]} 13. O-O {[%clk 0:02:35]}  Re8 {[%clk 0:01:38]} 14. h3 {[%clk 0:02:33]}  Nf8 {[%clk 0:01:31]} 15. Ne5 {[%clk 0:02:33]}  Ne6 {[%clk 0:01:28]} 16. Bg3 {[%clk 0:02:18]}  cxd4 {[%clk 0:01:23]} 17. exd4 {[%clk 0:02:18]}  Nxd4 {[%clk 0:01:24]} 18. Qa4 {[%clk 0:01:56]}  Ne6 {[%clk 0:01:17]} 19. Rfe1 {[%clk 0:01:48]}  Nc5 {[%clk 0:01:04]} 20. Qc2 {[%clk 0:01:35]}  Nxd3 {[%clk 0:00:55]} 21. Qxd3 {[%clk 0:01:36]}  Bc5 {[%clk 0:00:54]} 22. b4 {[%clk 0:01:28]}  Bd6 {[%clk 0:00:50]} 23. Qf5 {[%clk 0:01:08]}  Qc8 {[%clk 0:00:37]} 24. Qxc8 {[%clk 0:00:54]}  Raxc8 {[%clk 0:00:38]} 25. Nb5 {[%clk 0:00:55]}  Bb8 {[%clk 0:00:38]} 26. f4 {[%clk 0:00:36]}  Ne4 {[%clk 0:00:33]} 27. Bh2 {[%clk 0:00:34]}  f6 {[%clk 0:00:31]} 28. Nf3 {[%clk 0:00:26]}  a6 {[%clk 0:00:25]} 29. Nbd4 {[%clk 0:00:26]}  Bd6 {[%clk 0:00:18]} 30. Nf5 {[%clk 0:00:25]}  Bf8 {[%clk 0:00:17]} 31. Ne3 {[%clk 0:00:26]}  Nc3 {[%clk 0:00:14]} 32. Rd3 {[%clk 0:00:20]}  a5 {[%clk 0:00:11]} 33. Nf5 {[%clk 0:00:09]}  Rxe1+ {[%clk 0:00:10]} 34. Nxe1 {[%clk 0:00:10]}  axb4 {[%clk 0:00:08]} 35. axb4 {[%clk 0:00:11]}  Bxb4 {[%clk 0:00:08]} 36. Nc2 {[%clk 0:00:11]}  Bc5+ {[%clk 0:00:06]} 37. Kf1 {[%clk 0:00:11]}  Ba6 {[%clk 0:00:06]} 38. Ne1 {[%clk 0:00:09]}  Re8 {[%clk 0:00:06]} 39. Bg3 {[%clk 0:00:05]}  Rxe1+ {[%clk 0:00:05]} 40. Kxe1 {[%clk 0:00:06]}  Bxd3 {[%clk 0:00:06]} 41. Nh4 {[%clk 0:00:06]}  Ne4 {[%clk 0:00:05]} 42. Bh2 {[%clk 0:00:06]}  Bb4+ {[%clk 0:00:05]} 43. Kd1 {[%clk 0:00:06]}  Bc3 {[%clk 0:00:05]} 44. Nf3 {[%clk 0:00:07]}  b5 {[%clk 0:00:05]} 45. g4 {[%clk 0:00:06]}  b4 {[%clk 0:00:05]} 46. Bg1 {[%clk 0:00:07]}  b3 {[%clk 0:00:05]} 47. Nd4 {[%clk 0:00:06]}  b2 {[%clk 0:00:06]} 48. Nf5 {[%clk 0:00:06]}  b1=R# {[%clk 0:00:06]} 0-1


[Site "https://www.chess.com"]

[Event "Titled Tuesday Blitz September 27 Early 2022"]
[White "Rostovtsev, Dmitry"]
[Black "Buscar, Michael"]
[WhiteFideId "34278320"]
[BlackFideId "2603616"]
[WhiteElo "2313"]
[BlackElo "2010"]
[Result "1-0"]
[Round "02"]
[TimeControl "180+1"]
[Date "2022.09.27"]
[WhiteClock "0:00:51"]
[BlackClock "0:00:03"]

1. e4 {[%clk 0:03:00]}  c5 {[%clk 0:02:59]} 2. Nf3 {[%clk 0:03:00]}  Nc6 {[%clk 0:02:59]} 3. b3 {[%clk 0:02:57]}  Nf6 {[%clk 0:02:58]} 4. e5 {[%clk 0:02:57]}  Nd5 {[%clk 0:02:58]} 5. Bb2 {[%clk 0:02:57]}  Nc7 {[%clk 0:02:56]} 6. Nc3 {[%clk 0:02:56]}  Ne6 {[%clk 0:02:56]} 7. Bc4 {[%clk 0:02:54]}  d5 {[%clk 0:02:55]} 8. Bxd5 {[%clk 0:02:51]}  g6 {[%clk 0:02:53]} 9. O-O {[%clk 0:02:51]}  Bg7 {[%clk 0:02:53]} 10. Re1 {[%clk 0:02:51]}  O-O {[%clk 0:02:52]} 11. Bxc6 {[%clk 0:02:49]}  bxc6 {[%clk 0:02:52]} 12. d3 {[%clk 0:02:50]}  Nd4 {[%clk 0:02:49]} 13. h3 {[%clk 0:02:51]}  Nxf3+ {[%clk 0:02:43]} 14. Qxf3 {[%clk 0:02:51]}  c4 {[%clk 0:02:44]} 15. dxc4 {[%clk 0:02:50]}  Qc7 {[%clk 0:02:43]} 16. Na4 {[%clk 0:02:44]}  Bf5 {[%clk 0:02:38]} 17. g4 {[%clk 0:02:40]}  Be6 {[%clk 0:02:30]} 18. Nc5 {[%clk 0:02:40]}  Rad8 {[%clk 0:02:30]} 19. Rad1 {[%clk 0:02:33]}  Bc8 {[%clk 0:02:30]} 20. Qe3 {[%clk 0:02:31]}  Rxd1 {[%clk 0:02:15]} 21. Rxd1 {[%clk 0:02:31]}  Rd8 {[%clk 0:02:16]} 22. Rxd8+ {[%clk 0:02:31]}  Qxd8 {[%clk 0:02:16]} 23. Qd4 {[%clk 0:02:30]}  Qa5 {[%clk 0:02:10]} 24. Bc3 {[%clk 0:02:30]}  Qc7 {[%clk 0:02:03]} 25. f4 {[%clk 0:02:29]}  h5 {[%clk 0:02:02]} 26. gxh5 {[%clk 0:02:28]}  Bxh3 {[%clk 0:02:01]} 27. hxg6 {[%clk 0:02:27]}  fxg6 {[%clk 0:02:00]} 28. Qd2 {[%clk 0:02:21]}  Qc8 {[%clk 0:01:45]} 29. e6 {[%clk 0:02:19]}  Bxc3 {[%clk 0:01:36]} 30. Qxc3 {[%clk 0:02:18]}  Bxe6 {[%clk 0:01:36]} 31. Kh2 {[%clk 0:02:03]}  Bf7 {[%clk 0:01:29]} 32. Qe5 {[%clk 0:01:55]}  Qg4 {[%clk 0:01:24]} 33. Qe3 {[%clk 0:01:53]}  Qh4+ {[%clk 0:01:14]} 34. Kg2 {[%clk 0:01:53]}  Qg4+ {[%clk 0:01:04]} 35. Kf2 {[%clk 0:01:53]}  Qh5 {[%clk 0:00:54]} 36. Qxe7 {[%clk 0:01:33]}  Qh2+ {[%clk 0:00:50]} 37. Ke3 {[%clk 0:01:30]}  Qxc2 {[%clk 0:00:50]} 38. Nd7 {[%clk 0:01:29]}  Qc1+ {[%clk 0:00:44]} 39. Kd4 {[%clk 0:01:23]}  Qxf4+ {[%clk 0:00:31]} 40. Kc5 {[%clk 0:01:23]}  Qf5+ {[%clk 0:00:21]} 41. Kxc6 {[%clk 0:01:22]}  Qf3+ {[%clk 0:00:14]} 42. Kc7 {[%clk 0:01:20]}  Qf4+ {[%clk 0:00:14]} 43. Kd8 {[%clk 0:01:19]}  Kg7 {[%clk 0:00:08]} 44. c5 {[%clk 0:01:11]}  g5 {[%clk 0:00:05]} 45. Ne5 {[%clk 0:01:04]}  Qd4+ {[%clk 0:00:03]} 46. Kc8 {[%clk 0:00:51]} 1-0


[Site "https://www.chess.com"]

[Event "Titled Tuesday Blitz September 27 Early 2022"]
[White "Spalir, Monika"]
[Black "Vignesh, N R"]
[WhiteFideId "14609118"]
[BlackFideId "25012215"]
[WhiteElo "2032"]
[BlackElo "2363"]
[Result "0-1"]
[Round "02"]
[TimeControl "180+1"]
[Date "2022.09.27"]
[WhiteClock "0:00:01"]
[BlackClock "0:01:04"]

1. d4 {[%clk 0:03:00]}  Nf6 {[%clk 0:02:47]} 2. c4 {[%clk 0:03:00]}  c5 {[%clk 0:02:47]} 3. d5 {[%clk 0:02:59]}  e6 {[%clk 0:02:47]} 4. Nc3 {[%clk 0:02:54]}  exd5 {[%clk 0:02:48]} 5. cxd5 {[%clk 0:02:55]}  d6 {[%clk 0:02:48]} 6. Nf3 {[%clk 0:02:55]}  g6 {[%clk 0:02:49]} 7. Nd2 {[%clk 0:02:53]}  Bg7 {[%clk 0:02:48]} 8. e4 {[%clk 0:02:53]}  O-O {[%clk 0:02:48]} 9. Be2 {[%clk 0:02:43]}  b6 {[%clk 0:02:31]} 10. O-O {[%clk 0:02:18]}  Ba6 {[%clk 0:02:30]} 11. a4 {[%clk 0:01:53]}  Bxe2 {[%clk 0:02:29]} 12. Qxe2 {[%clk 0:01:52]}  Re8 {[%clk 0:02:28]} 13. Nc4 {[%clk 0:01:40]}  Na6 {[%clk 0:02:22]} 14. f3 {[%clk 0:01:28]}  Nb4 {[%clk 0:02:20]} 15. Rd1 {[%clk 0:00:48]}  Nh5 {[%clk 0:02:19]} 16. g4 {[%clk 0:00:40]}  Bd4+ {[%clk 0:02:03]} 17. Kh1 {[%clk 0:00:37]}  Ng7 {[%clk 0:02:00]} 18. Bf4 {[%clk 0:00:33]}  Be5 {[%clk 0:01:55]} 19. Bxe5 {[%clk 0:00:33]}  dxe5 {[%clk 0:01:55]} 20. b3 {[%clk 0:00:19]}  h5 {[%clk 0:01:54]} 21. Qg2 {[%clk 0:00:13]}  hxg4 {[%clk 0:01:46]} 22. fxg4 {[%clk 0:00:14]}  Qg5 {[%clk 0:01:43]} 23. h3 {[%clk 0:00:13]}  Red8 {[%clk 0:01:38]} 24. Rd2 {[%clk 0:00:13]}  Ne8 {[%clk 0:01:36]} 25. Rf1 {[%clk 0:00:13]}  Rd7 {[%clk 0:01:33]} 26. Qf2 {[%clk 0:00:02]}  f6 {[%clk 0:01:29]} 27. Kh2 {[%clk 0:00:02]}  Rh7 {[%clk 0:01:28]} 28. Qg2 {[%clk 0:00:02]}  Rd8 {[%clk 0:01:25]} 29. d6 {[%clk 0:00:02]}  Nc6 {[%clk 0:01:22]} 30. Nb5 {[%clk 0:00:03]}  Nd4 {[%clk 0:01:21]} 31. Nxa7 {[%clk 0:00:03]}  Rxa7 {[%clk 0:01:20]} 32. Nxb6 {[%clk 0:00:02]}  Nxd6 {[%clk 0:01:19]} 33. Nd5 {[%clk 0:00:03]}  Nxe4 {[%clk 0:01:18]} 34. Qxe4 {[%clk 0:00:02]}  Qxd2+ {[%clk 0:01:17]} 35. Kh1 {[%clk 0:00:02]}  Kg7 {[%clk 0:01:09]} 36. g5 {[%clk 0:00:01]}  Qxg5 {[%clk 0:01:07]} 37. Nxf6 {[%clk 0:00:01]}  Rf7 {[%clk 0:01:04]} 0-1


[Site "https://www.chess.com"]

[Event "Titled Tuesday Blitz September 27 Early 2022"]
[White "Runets, Ivan"]
[Black "Bilych, Olexiy"]
[WhiteFideId "13511564"]
[BlackFideId "14156504"]
[WhiteElo "1962"]
[BlackElo "2157"]
[Result "0-1"]
[Round "02"]
[TimeControl "180+1"]
[Date "2022.09.27"]
[WhiteClock "0:00:04"]
[BlackClock "0:00:14"]

1. d4 {[%clk 0:02:58]}  Nf6 {[%clk 0:02:55]} 2. c4 {[%clk 0:02:58]}  e6 {[%clk 0:02:54]} 3. Nc3 {[%clk 0:02:58]}  Bb4 {[%clk 0:02:52]} 4. e3 {[%clk 0:02:58]}  O-O {[%clk 0:02:52]} 5. Bd3 {[%clk 0:02:57]}  d5 {[%clk 0:02:52]} 6. Ne2 {[%clk 0:02:51]}  dxc4 {[%clk 0:02:48]} 7. Bxc4 {[%clk 0:02:50]}  c5 {[%clk 0:02:48]} 8. O-O {[%clk 0:02:48]}  cxd4 {[%clk 0:02:44]} 9. exd4 {[%clk 0:02:48]}  Nc6 {[%clk 0:02:12]} 10. Bg5 {[%clk 0:02:32]}  Be7 {[%clk 0:02:05]} 11. a3 {[%clk 0:02:16]}  Nd5 {[%clk 0:01:41]} 12. Bxd5 {[%clk 0:01:55]}  Bxg5 {[%clk 0:01:41]} 13. Bxc6 {[%clk 0:01:55]}  bxc6 {[%clk 0:01:41]} 14. Ne4 {[%clk 0:01:53]}  Be7 {[%clk 0:01:40]} 15. Rc1 {[%clk 0:01:45]}  Ba6 {[%clk 0:01:38]} 16. Re1 {[%clk 0:01:27]}  Qd5 {[%clk 0:01:22]} 17. Nf4 {[%clk 0:01:11]}  Qf5 {[%clk 0:01:21]} 18. Qf3 {[%clk 0:01:03]}  Rad8 {[%clk 0:00:51]} 19. Red1 {[%clk 0:00:53]}  Bb5 {[%clk 0:00:44]} 20. g4 {[%clk 0:00:46]}  Be2 {[%clk 0:00:37]} 21. Qxe2 {[%clk 0:00:36]}  Qxf4 {[%clk 0:00:38]} 22. Rxc6 {[%clk 0:00:34]}  Rd5 {[%clk 0:00:31]} 23. Rc3 {[%clk 0:00:31]}  Rfd8 {[%clk 0:00:30]} 24. Rcd3 {[%clk 0:00:31]}  h5 {[%clk 0:00:28]} 25. h3 {[%clk 0:00:28]}  hxg4 {[%clk 0:00:27]} 26. Qxg4 {[%clk 0:00:28]}  Qh6 {[%clk 0:00:16]} 27. Kf1 {[%clk 0:00:25]}  f5 {[%clk 0:00:17]} 28. Qf3 {[%clk 0:00:21]}  fxe4 {[%clk 0:00:17]} 29. Qxe4 {[%clk 0:00:22]}  Rf8 {[%clk 0:00:17]} 30. Rg3 {[%clk 0:00:21]}  Rdf5 {[%clk 0:00:17]} 31. Rg2 {[%clk 0:00:19]}  Qxh3 {[%clk 0:00:17]} 32. Qxe6+ {[%clk 0:00:18]}  R8f7 {[%clk 0:00:17]} 33. Kg1 {[%clk 0:00:12]}  Rh5 {[%clk 0:00:14]} 34. Qxh3 {[%clk 0:00:10]}  Rxh3 {[%clk 0:00:15]} 35. Rg3 {[%clk 0:00:05]}  Rxg3+ {[%clk 0:00:15]} 36. fxg3 {[%clk 0:00:06]}  Rf3 {[%clk 0:00:15]} 37. Kg2 {[%clk 0:00:07]}  Rb3 {[%clk 0:00:15]} 38. Rd2 {[%clk 0:00:07]}  Bd6 {[%clk 0:00:16]} 39. g4 {[%clk 0:00:04]}  Kf7 {[%clk 0:00:16]} 40. Kf2 {[%clk 0:00:03]}  Ke6 {[%clk 0:00:15]} 41. d5+ {[%clk 0:00:03]}  Ke5 {[%clk 0:00:15]} 42. Ke2 {[%clk 0:00:03]}  g5 {[%clk 0:00:15]} 43. Kd1 {[%clk 0:00:04]}  Rg3 {[%clk 0:00:14]} 44. Re2+ {[%clk 0:00:03]}  Kxd5 {[%clk 0:00:14]} 45. Re8 {[%clk 0:00:03]}  Rxg4 {[%clk 0:00:14]} 46. Ra8 {[%clk 0:00:04]}  Bc5 {[%clk 0:00:15]} 47. b4 {[%clk 0:00:04]}  Bb6 {[%clk 0:00:15]} 48. Rg8 {[%clk 0:00:03]}  Rg3 {[%clk 0:00:14]} 49. Kc2 {[%clk 0:00:02]}  Rxa3 {[%clk 0:00:14]} 50. Rxg5+ {[%clk 0:00:03]}  Kc4 {[%clk 0:00:14]} 51. Rg4+ {[%clk 0:00:02]}  Kb5 {[%clk 0:00:15]} 52. Kb2 {[%clk 0:00:02]}  Rd3 {[%clk 0:00:14]} 53. Rg5+ {[%clk 0:00:02]}  Kxb4 {[%clk 0:00:14]} 54. Rg4+ {[%clk 0:00:03]}  Rd4 {[%clk 0:00:14]} 55. Kc2 {[%clk 0:00:04]}  Rxg4 {[%clk 0:00:14]} 0-1


[Site "https://www.chess.com"]